[Event "British Rapidplay Championship 2023"]
[Site "Mercure Bradford, Bankfield Hotel"]
[Date "2023.04.16"]
[Round "7.17"]
[White "Bak, Christopher"]
[Black "Larchikov, Maksym"]
[Result "0-1"]
[TimeControl "15 minutes plus 10 seconds per move"]
[WhiteElo "2116"]
[BlackElo "1871"]

1. d4 {[%clk 00:15:17]} {[%emt 00:00:02]} d5 {[%clk 00:15:14]} {[%emt
00:00:06]} 2. c4 {[%clk 00:15:24]} {[%emt 00:00:03]} e6 {[%clk 00:15:21]}
{[%emt 00:00:04]} 3. cxd5 {[%clk 00:15:30]} {[%emt 00:00:04]} exd5 {[%clk
00:15:27]} {[%emt 00:00:02]} 4. Nc3 {[%clk 00:15:37]} {[%emt 00:00:03]} Nf6
{[%clk 00:15:34]} {[%emt 00:00:04]} 5. Bg5 {[%clk 00:15:44]} {[%emt 00:00:03]}
Be7 {[%clk 00:15:39]} {[%emt 00:00:05]} 6. Qc2 {[%clk 00:15:46]} {[%emt
00:00:08]} c6 {[%clk 00:15:45]} {[%emt 00:00:04]} 7. e3 {[%clk 00:15:53]}
{[%emt 00:00:04]} O-O {[%clk 00:15:49]} {[%emt 00:00:05]} 8. Bd3 {[%clk
00:15:59]} {[%emt 00:00:04]} Nbd7 {[%clk 00:15:50]} {[%emt 00:00:10]} 9. Nge2
{[%clk 00:16:01]} {[%emt 00:00:07]} Re8 {[%clk 00:15:49]} {[%emt 00:00:11]} 10.
O-O {[%clk 00:16:03]} {[%emt 00:00:07]} Nf8 {[%clk 00:15:48]} {[%emt 00:00:11]}
11. Rab1 {[%clk 00:15:04]} {[%emt 00:01:10]} a5 {[%clk 00:15:42]} {[%emt
00:00:16]} 12. a3 {[%clk 00:15:11]} {[%emt 00:00:02]} h6 {[%clk 00:14:22]}
{[%emt 00:01:30]} 13. Bf4 {[%clk 00:14:20]} {[%emt 00:01:02]} b5 {[%clk
00:11:37]} {[%emt 00:02:55]} 14. b4 {[%clk 00:11:23]} {[%emt 00:03:06]} axb4
{[%clk 00:11:07]} {[%emt 00:00:40]} 15. axb4 {[%clk 00:11:31]} {[%emt
00:00:02]} Bd6 {[%clk 00:09:26]} {[%emt 00:01:51]} 16. Rfd1 {[%clk 00:09:08]}
{[%emt 00:02:33]} Bxf4 {[%clk 00:08:30]} {[%emt 00:01:07]} 17. Nxf4 {[%clk
00:09:15]} {[%emt 00:00:02]} Qd6 {[%clk 00:07:24]} {[%emt 00:01:16]} 18. Bxb5
{[%clk 00:03:27]} {[%emt 00:05:58]} cxb5 {[%clk 00:06:50]} {[%emt 00:00:44]} 19.
Nxb5 {[%clk 00:03:35]} {[%emt 00:00:02]} Qd8 {[%clk 00:06:40]} {[%emt
00:00:19]} 20. Nc7 {[%clk 00:03:43]} {[%emt 00:00:03]} Bf5 {[%clk 00:06:46]}
{[%emt 00:00:04]} 21. Qxf5 {[%clk 00:03:10]} {[%emt 00:00:43]} Qxc7 {[%clk
00:06:53]} {[%emt 00:00:03]} 22. Nxd5 {[%clk 00:03:00]} {[%emt 00:00:20]} Nxd5
{[%clk 00:06:11]} {[%emt 00:00:52]} 23. Qxd5 {[%clk 00:03:08]} {[%emt
00:00:02]} Red8 {[%clk 00:06:06]} {[%emt 00:00:15]} 24. Qc5 {[%clk 00:03:16]}
{[%emt 00:00:03]} Ne6 {[%clk 00:05:57]} {[%emt 00:00:19]} 25. Qxc7 {[%clk
00:03:18]} {[%emt 00:00:07]} Nxc7 {[%clk 00:06:05]} {[%emt 00:00:02]} 26. g4
{[%clk 00:02:27]} {[%emt 00:01:01]} Rab8 {[%clk 00:06:05]} {[%emt 00:00:10]} 27.
Rdc1 {[%clk 00:02:23]} {[%emt 00:00:14]} Nd5 {[%clk 00:05:34]} {[%emt
00:00:41]} 28. b5 {[%clk 00:02:27]} {[%emt 00:00:07]} Rdc8 {[%clk 00:05:11]}
{[%emt 00:00:33]} 29. Rc5 {[%clk 00:01:41]} {[%emt 00:00:56]} Nc3 {[%clk
00:03:31]} {[%emt 00:01:49]} 30. Rb3 {[%clk 00:01:43]} {[%emt 00:00:08]} Ne4
{[%clk 00:03:05]} {[%emt 00:00:37]} 31. Rxc8+ {[%clk 00:01:15]} {[%emt
00:00:37]} Rxc8 {[%clk 00:03:13]} {[%emt 00:00:02]} 32. Kg2 {[%clk 00:01:16]}
{[%emt 00:00:09]} Kf8 {[%clk 00:03:18]} {[%emt 00:00:06]} 33. Rb2 {[%clk
00:01:07]} {[%emt 00:00:19]} Rb8 {[%clk 00:03:09]} {[%emt 00:00:18]} 34. f4
{[%emt 00:00:57]} Nd6 {[%clk 00:03:06]} 35. Kf3 {[%clk 00:00:26]} {[%emt
00:00:17]} Rxb5 {[%clk 00:02:45]} {[%emt 00:00:31]} 36. Ra2 {[%clk 00:00:34]}
{[%emt 00:00:02]} Ke7 {[%clk 00:02:48]} {[%emt 00:00:07]} 37. Ra6 {[%clk
00:00:37]} {[%emt 00:00:07]} Rb3 {[%clk 00:02:33]} {[%emt 00:00:26]} 38. Rc6
{[%clk 00:00:32]} {[%emt 00:00:14]} Kd7 {[%clk 00:02:08]} {[%emt 00:00:35]} 39.
Rc5 {[%clk 00:00:41]} {[%emt 00:00:02]} g6 {[%clk 00:02:00]} {[%emt 00:00:18]}
40. h3 {[%clk 00:00:48]} {[%emt 00:00:02]} Rb5 {[%clk 00:02:02]} {[%emt
00:00:09]} 41. Rc3 {[%clk 00:00:52]} {[%emt 00:00:06]} f5 {[%clk 00:02:05]}
{[%emt 00:00:07]} 42. Ra3 {[%clk 00:00:56]} {[%emt 00:00:05]} Ke6 {[%clk
00:01:46]} {[%emt 00:00:29]} 43. Rc3 {[%clk 00:00:54]} {[%emt 00:00:12]} Rb2
{[%clk 00:01:45]} {[%emt 00:00:11]} 44. Rc6 {[%clk 00:00:31]} {[%emt 00:00:33]}
Kd7 {[%clk 00:01:50]} {[%emt 00:00:05]} 45. gxf5 {[%clk 00:00:13]} {[%emt
00:00:27]} gxf5 {[%clk 00:01:57]} {[%emt 00:00:03]} 46. Rc5 {[%clk 00:00:21]}
{[%emt 00:00:03]} Ke6 {[%clk 00:01:58]} {[%emt 00:00:09]} 47. Rc6 {[%clk
00:00:20]} {[%emt 00:00:11]} Rb5 {[%clk 00:01:42]} {[%emt 00:00:26]} 48. Ra6
{[%clk 00:00:24]} {[%emt 00:00:07]} Kd5 {[%clk 00:01:45]} {[%emt 00:00:07]} 49.
Kg3 {[%clk 00:00:24]} {[%emt 00:00:10]} Rb3 {[%clk 00:01:33]} {[%emt 00:00:22]}
50. Ra5+ {[%clk 00:00:14]} {[%emt 00:00:20]} Ke6 {[%clk 00:01:41]} {[%emt
00:00:02]} 51. Re5+ {[%clk 00:00:15]} {[%emt 00:00:10]} Kf6 {[%clk 00:01:48]}
{[%emt 00:00:03]} 52. Kf2 {[%clk 00:00:14]} {[%emt 00:00:11]} Rb2+ {[%clk
00:01:49]} {[%emt 00:00:10]} 53. Kg3 {[%clk 00:00:20]} {[%emt 00:00:03]} Rb3
{[%clk 00:01:21]} {[%emt 00:00:39]} 54. Kf2 {[%clk 00:00:29]} {[%emt 00:00:01]}
Nc4 {[%clk 00:01:07]} {[%emt 00:00:23]} 55. Re8 {[%clk 00:00:37]} {[%emt
00:00:02]} Kf7 {[%clk 00:01:00]} {[%emt 00:00:17]} 56. Rh8 {[%clk 00:00:28]}
{[%emt 00:00:18]} Rb2+ {[%clk 00:00:34]} {[%emt 00:00:37]} 57. Kf3 {[%clk
00:00:19]} {[%emt 00:00:19]} Kg6 {[%clk 00:00:19]} {[%emt 00:00:26]} 58. Rg8+
{[%clk 00:00:22]} {[%emt 00:00:07]} Kh5 {[%clk 00:00:13]} {[%emt 00:00:15]} 59.
Rf8 {[%clk 00:00:15]} {[%emt 00:00:17]} Kg6 {[%clk 00:00:13]} {[%emt 00:00:11]}
60. Rg8+ {[%clk 00:00:21]} {[%emt 00:00:04]} Kf7 {[%clk 00:00:21]} {[%emt
00:00:02]} 61. Rh8 {[%clk 00:00:28]} {[%emt 00:00:03]} Rb3 {[%clk 00:00:28]}
{[%emt 00:00:03]} 62. Rxh6 {[%clk 00:00:33]} {[%emt 00:00:04]} Rxe3+ {[%clk
00:00:36]} {[%emt 00:00:02]} 63. Kf2 {[%clk 00:00:40]} {[%emt 00:00:03]} Re4
{[%clk 00:00:45]} {[%emt 00:00:02]} 64. Kg3 {[%clk 00:00:28]} {[%emt 00:00:22]}
Rxd4 {[%clk 00:00:51]} {[%emt 00:00:03]} 65. Ra6 {[%clk 00:00:25]} {[%emt
00:00:14]} Nd6 {[%clk 00:00:52]} {[%emt 00:00:10]} 66. Kh4 {[%clk 00:00:11]}
{[%emt 00:00:24]} Rxf4+ {[%clk 00:00:30]} {[%emt 00:00:31]} 67. Kg5 {[%clk
00:00:19]} {[%emt 00:00:02]} Rd4 {[%clk 00:00:38]} {[%emt 00:00:03]} 68. h4
{[%clk 00:00:27]} {[%emt 00:00:02]} f4 {[%clk 00:00:38]} {[%emt 00:00:09]} 69.
Kg4 {[%clk 00:00:29]} {[%emt 00:00:08]} Nc4 {[%clk 00:00:35]} {[%emt 00:00:13]}
70. h5 {[%clk 00:00:19]} {[%emt 00:00:20]} Ne5+ {[%clk 00:00:15]} {[%emt
00:00:30]} 71. Kf5 {[%clk 00:00:27]} {[%emt 00:00:02]} Nd3 {[%clk 00:00:19]}
{[%emt 00:00:06]} 72. Ra7+ {[%clk 00:00:35]} {[%emt 00:00:02]} Kg8 {[%clk
00:00:26]} {[%emt 00:00:03]} 73. Kg6 {[%clk 00:00:35]} {[%emt 00:00:09]} Rd6+
{[%clk 00:00:33]} {[%emt 00:00:03]} 74. Kg5 {[%clk 00:00:38]} {[%emt 00:00:07]}
f3 {[%clk 00:00:41]} {[%emt 00:00:03]} 75. Ra8+ {[%clk 00:00:41]} {[%emt
00:00:08]} Kf7 {[%clk 00:00:44]} {[%emt 00:00:06]} 76. Ra7+ {[%clk 00:00:48]}
{[%emt 00:00:03]} Ke6 {[%clk 00:00:47]} {[%emt 00:00:06]} 77. h6 {[%clk
00:00:37]} {[%emt 00:00:22]} f2 {[%clk 00:00:48]} {[%emt 00:00:10]} 78. h7
{[%clk 00:00:41]} {[%emt 00:00:05]} f1=Q {[%clk 00:00:53]} {[%emt 00:00:05]} 79.
h8=Q {[%clk 00:00:48]} {[%emt 00:00:03]} Qg1+ {[%clk 00:00:31]} {[%emt
00:00:32]} 80. Kh6 {[%clk 00:00:47]} {[%emt 00:00:11]} Qxa7 {[%clk 00:00:28]}
{[%emt 00:00:13]} 81. Qg8+ {[%clk 00:00:46]} {[%emt 00:00:11]} Ke5+ {[%clk
00:00:35]} {[%emt 00:00:04]} 82. Kg5 {[%clk 00:00:36]} {[%emt 00:00:19]} Qe3
{[%clk 00:00:42]} {[%emt 00:00:03]} 83. Kg4 {[%clk 00:00:40]} {[%emt 00:00:05]}
Nf2+ {[%clk 00:00:46]} {[%emt 00:00:07]} 84. Kh4 {[%clk 00:00:41]} {[%emt
00:00:08]} Rh6+ {[%clk 00:00:53]} {[%emt 00:00:03]} 0-1

[Event "British Rapidplay Championship 2023"]
[Site "Mercure Bradford, Bankfield Hotel"]
[Date "2023.04.16"]
[Round "7.18"]
[White "Fava, Lorenzo"]
[Black "Mosnegutu, Klauss"]
[Result "0-1"]
[TimeControl "15 minutes plus 10 seconds per move"]
[WhiteElo "1728"]
[BlackElo "2229"]

1. e4 {[%clk 00:15:17]} {[%emt 00:00:02]} c5 {[%clk 00:15:19]} {[%emt
00:00:02]} 2. Nf3 {[%clk 00:15:26]} {[%emt 00:00:01]} d6 {[%clk 00:15:28]}
{[%emt 00:00:01]} 3. Bb5+ {[%clk 00:15:34]} {[%emt 00:00:01]} Nc6 {[%clk
00:15:37]} {[%emt 00:00:01]} 4. O-O {[%clk 00:15:32]} {[%emt 00:00:11]} Bd7
{[%clk 00:15:44]} {[%emt 00:00:03]} 5. d4 {[%clk 00:15:36]} {[%emt 00:00:06]}
cxd4 {[%clk 00:15:45]} {[%emt 00:00:09]} 6. Nxd4 {[%clk 00:15:44]} {[%emt
00:00:01]} Nf6 {[%clk 00:15:51]} {[%emt 00:00:04]} 7. Nc3 {[%clk 00:15:45]}
{[%emt 00:00:09]} e5 {[%clk 00:16:00]} {[%emt 00:00:01]} 8. Nxc6 {[%clk
00:15:27]} {[%emt 00:00:27]} bxc6 {[%clk 00:16:06]} {[%emt 00:00:04]} 9. Bc4
{[%clk 00:15:35]} {[%emt 00:00:02]} Rb8 {[%clk 00:16:00]} {[%emt 00:00:16]} 10.
Bb3 {[%clk 00:15:34]} {[%emt 00:00:11]} Be6 {[%clk 00:16:06]} {[%emt 00:00:05]}
11. Bxe6 {[%clk 00:14:58]} {[%emt 00:00:46]} fxe6 {[%clk 00:16:14]} {[%emt
00:00:02]} 12. f4 {[%clk 00:14:01]} {[%emt 00:01:06]} exf4 {[%clk 00:16:12]}
{[%emt 00:00:13]} 13. Bxf4 {[%clk 00:14:05]} {[%emt 00:00:05]} Rxb2 {[%clk
00:15:20]} {[%emt 00:01:02]} 14. Qe2 {[%clk 00:11:07]} {[%emt 00:03:08]} e5
{[%clk 00:12:53]} {[%emt 00:02:38]} 15. Bg5 {[%clk 00:10:56]} {[%emt 00:00:21]}
Be7 {[%clk 00:12:59]} {[%emt 00:00:04]} 16. Qc4 {[%clk 00:10:56]} {[%emt
00:00:09]} Qd7 {[%clk 00:11:50]} {[%emt 00:01:20]} 17. Rad1 {[%clk 00:10:55]}
{[%emt 00:00:11]} Rxc2 {[%clk 00:11:13]} {[%emt 00:00:47]} 18. Qb3 {[%clk
00:10:54]} {[%emt 00:00:11]} Rxc3 {[%clk 00:11:22]} {[%emt 00:00:01]} 19. Qxc3
{[%clk 00:11:03]} Nxe4 {[%clk 00:10:54]} {[%emt 00:00:38]} 20. Qb3 {[%clk
00:10:58]} {[%emt 00:00:15]} Nxg5 {[%clk 00:11:00]} {[%emt 00:00:04]} 21. h4
{[%clk 00:11:06]} {[%emt 00:00:02]} Ne6 {[%clk 00:11:08]} {[%emt 00:00:02]} 22.
Qb8+ {[%clk 00:10:02]} {[%emt 00:01:14]} Nd8 {[%clk 00:10:21]} {[%emt
00:00:58]} 23. Qb3 {[%clk 00:08:48]} {[%emt 00:01:24]} d5 {[%clk 00:10:19]}
{[%emt 00:00:12]} 24. h5 {[%clk 00:07:58]} {[%emt 00:01:01]} Bc5+ {[%clk
00:09:39]} {[%emt 00:00:50]} 25. Kh1 {[%clk 00:08:06]} {[%emt 00:00:01]} Qg4
{[%clk 00:09:34]} {[%emt 00:00:14]} 26. Rf3 {[%clk 00:07:26]} {[%emt 00:00:50]}
Qxh5+ {[%clk 00:09:06]} {[%emt 00:00:38]} 27. Rh3 {[%clk 00:07:35]} {[%emt
00:00:01]} Qg4 {[%clk 00:08:42]} {[%emt 00:00:34]} 28. Rg3 {[%clk 00:07:21]}
{[%emt 00:00:25]} Qh4+ {[%clk 00:08:27]} {[%emt 00:00:25]} 29. Rh3 {[%clk
00:07:29]} {[%emt 00:00:01]} Qe7 {[%clk 00:08:30]} {[%emt 00:00:07]} 30. Qc2
{[%clk 00:06:02]} {[%emt 00:01:38]} e4 {[%clk 00:08:29]} {[%emt 00:00:10]} 31.
Rc3 {[%clk 00:06:05]} {[%emt 00:00:07]} Bb6 {[%clk 00:07:52]} {[%emt 00:00:48]}
32. Rf1 {[%clk 00:06:07]} {[%emt 00:00:08]} Rf8 {[%clk 00:07:51]} {[%emt
00:00:12]} 33. Rxf8+ {[%clk 00:05:30]} Kxf8 {[%clk 00:07:58]} {[%emt 00:00:50]}
0-1

[Event "British Rapidplay Championship 2023"]
[Site "Mercure Bradford, Bankfield Hotel"]
[Date "2023.04.16"]
[Round "7.19"]
[White "Ciuravin, Andrei"]
[Black "Mokhber-Garcia, Sebastian"]
[Result "1-0"]
[TimeControl "15 minutes plus 10 seconds per move"]
[WhiteElo "2185"]
[BlackElo "1815"]

1. d4 {[%clk 00:15:18]} {[%emt 00:00:02]} Nf6 {[%clk 00:15:19]} {[%emt
00:00:01]} 2. Bg5 {[%clk 00:15:26]} {[%emt 00:00:02]} Ne4 {[%clk 00:15:26]}
{[%emt 00:00:04]} 3. Bh4 {[%clk 00:15:34]} {[%emt 00:00:02]} d5 {[%clk
00:15:17]} {[%emt 00:00:18]} 4. f3 {[%clk 00:15:42]} {[%emt 00:00:02]} Nf6
{[%clk 00:15:25]} {[%emt 00:00:03]} 5. Nc3 {[%clk 00:15:50]} {[%emt 00:00:02]}
c6 {[%clk 00:15:31]} {[%emt 00:00:04]} 6. e4 {[%clk 00:15:55]} {[%emt
00:00:04]} dxe4 {[%clk 00:15:38]} {[%emt 00:00:03]} 7. fxe4 {[%clk 00:16:03]}
{[%emt 00:00:02]} Qb6 {[%clk 00:15:36]} {[%emt 00:00:13]} 8. Rb1 {[%clk
00:16:08]} {[%emt 00:00:05]} e6 {[%clk 00:15:37]} {[%emt 00:00:08]} 9. h3
{[%clk 00:16:15]} {[%emt 00:00:03]} Bb4 {[%clk 00:15:43]} {[%emt 00:00:05]} 10.
Bxf6 {[%clk 00:16:13]} {[%emt 00:00:11]} gxf6 {[%clk 00:15:49]} {[%emt
00:00:04]} 11. Nf3 {[%clk 00:16:21]} {[%emt 00:00:03]} Nd7 {[%clk 00:15:35]}
{[%emt 00:00:23]} 12. Qd2 {[%clk 00:16:18]} {[%emt 00:00:13]} Nf8 {[%clk
00:15:29]} {[%emt 00:00:16]} 13. a3 {[%clk 00:16:25]} {[%emt 00:00:03]} Bd6
{[%clk 00:15:30]} {[%emt 00:00:09]} 14. e5 {[%clk 00:16:03]} {[%emt 00:00:32]}
fxe5 {[%clk 00:15:34]} {[%emt 00:00:07]} 15. dxe5 {[%clk 00:16:12]} {[%emt
00:00:01]} Be7 {[%clk 00:15:09]} {[%emt 00:00:34]} 16. Ne4 {[%clk 00:15:57]}
{[%emt 00:00:25]} Bd7 {[%clk 00:14:28]} {[%emt 00:00:51]} 17. Nd6+ {[%clk
00:15:30]} {[%emt 00:00:38]} Bxd6 {[%clk 00:14:33]} {[%emt 00:00:04]} 18. exd6
{[%clk 00:15:37]} {[%emt 00:00:02]} O-O-O {[%clk 00:14:29]} {[%emt 00:00:15]}
19. Ne5 {[%clk 00:15:28]} {[%emt 00:00:19]} Be8 {[%clk 00:14:20]} {[%emt
00:00:19]} 20. Nc4 {[%clk 00:15:11]} {[%emt 00:00:26]} Qc5 {[%clk 00:14:11]}
{[%emt 00:00:20]} 21. b4 {[%clk 00:15:13]} {[%emt 00:00:08]} Qd5 {[%clk
00:14:01]} {[%emt 00:00:20]} 22. Qe3 {[%clk 00:15:12]} {[%emt 00:00:11]} Kb8
{[%clk 00:13:32]} {[%emt 00:00:39]} 23. Rd1 {[%clk 00:15:19]} {[%emt 00:00:03]}
Qh5 {[%clk 00:12:42]} {[%emt 00:01:00]} 24. Be2 {[%clk 00:15:22]} {[%emt
00:00:07]} Qg6 {[%clk 00:12:46]} {[%emt 00:00:07]} 25. O-O {[%clk 00:15:22]}
{[%emt 00:00:09]} Rg8 {[%clk 00:12:46]} {[%emt 00:00:10]} 26. Bf3 {[%clk
00:15:22]} {[%emt 00:00:11]} Nd7 {[%clk 00:11:47]} {[%emt 00:01:08]} 27. Rd2
{[%clk 00:15:21]} {[%emt 00:00:11]} Nf6 {[%clk 00:11:08]} {[%emt 00:00:50]} 28.
Ne5 {[%clk 00:14:28]} {[%emt 00:01:03]} Qg5 {[%clk 00:11:15]} {[%emt 00:00:03]}
29. Qe2 {[%clk 00:14:25]} {[%emt 00:00:11]} Nd5 {[%clk 00:10:50]} {[%emt
00:00:36]} 30. Bxd5 {[%clk 00:12:29]} {[%emt 00:02:06]} exd5 {[%clk 00:08:46]}
{[%emt 00:02:13]} 31. d7 {[%clk 00:12:36]} {[%emt 00:00:04]} Bxd7 {[%clk
00:08:13]} {[%emt 00:00:43]} 32. Nxf7 {[%clk 00:12:42]} {[%emt 00:00:03]} Qg3
{[%clk 00:05:49]} {[%emt 00:02:35]} 33. Nxd8 {[%clk 00:12:43]} {[%emt
00:00:09]} Rxd8 {[%clk 00:04:51]} {[%emt 00:01:08]} 34. Rd3 {[%clk 00:12:46]}
{[%emt 00:00:07]} Qg7 {[%clk 00:03:54]} {[%emt 00:01:06]} 35. Qf2 {[%clk
00:12:49]} {[%emt 00:00:08]} Rg8 {[%clk 00:02:40]} {[%emt 00:01:25]} 36. Qf4+
{[%clk 00:12:42]} {[%emt 00:00:16]} Kc8 {[%clk 00:02:41]} {[%emt 00:00:10]} 37.
Rf2 {[%clk 00:12:49]} {[%emt 00:00:03]} Re8 {[%clk 00:02:18]} {[%emt 00:00:32]}
38. Re3 {[%clk 00:12:39]} {[%emt 00:00:19]} Rxe3 {[%clk 00:01:55]} {[%emt
00:00:34]} 39. Qxe3 {[%clk 00:12:47]} {[%emt 00:00:02]} a6 {[%clk 00:01:59]}
{[%emt 00:00:08]} 40. Kh2 {[%clk 00:12:50]} {[%emt 00:00:06]} Qg8 {[%clk
00:01:05]} {[%emt 00:01:04]} 41. Qf4 {[%clk 00:12:49]} {[%emt 00:00:11]} Qg6
{[%clk 00:01:06]} {[%emt 00:00:09]} 42. Qg3 {[%clk 00:12:41]} {[%emt 00:00:18]}
Bf5 {[%clk 00:00:33]} {[%emt 00:00:43]} 43. Qxg6 {[%clk 00:12:22]} {[%emt
00:00:29]} hxg6 {[%clk 00:00:37]} {[%emt 00:00:06]} 44. g4 {[%clk 00:12:28]}
{[%emt 00:00:04]} Be4 {[%clk 00:00:45]} {[%emt 00:00:03]} 45. Kg3 {[%clk
00:12:37]} {[%emt 00:00:01]} Kc7 {[%clk 00:00:46]} {[%emt 00:00:09]} 46. Kf4
{[%clk 00:12:45]} {[%emt 00:00:01]} b6 {[%clk 00:00:51]} {[%emt 00:00:05]} 47.
c4 {[%clk 00:12:53]} {[%emt 00:00:02]} Kd6 {[%clk 00:00:54]} {[%emt 00:00:07]}
48. cxd5 {[%clk 00:12:51]} {[%emt 00:00:13]} cxd5 {[%clk 00:00:58]} {[%emt
00:00:05]} 49. h4 {[%clk 00:12:57]} {[%emt 00:00:05]} Kc6 {[%clk 00:00:39]}
{[%emt 00:00:28]} 50. Ke3 {[%clk 00:13:03]} {[%emt 00:00:04]} Kb5 {[%clk
00:00:42]} {[%emt 00:00:07]} 51. Kd4 {[%clk 00:13:12]} {[%emt 00:00:01]} Ka4
{[%clk 00:00:48]} {[%emt 00:00:05]} 52. h5 {[%clk 00:13:20]} {[%emt 00:00:01]}
gxh5 {[%clk 00:00:56]} {[%emt 00:00:03]} 53. gxh5 {[%clk 00:13:28]} {[%emt
00:00:02]} Kxa3 {[%clk 00:01:02]} {[%emt 00:00:03]} 54. Kc3 {[%clk 00:13:34]}
{[%emt 00:00:05]} Bb1 {[%clk 00:00:41]} {[%emt 00:00:30]} 55. h6 {[%clk
00:13:30]} {[%emt 00:00:15]} d4 {[%clk 00:00:42]} {[%emt 00:00:09]} 56. Kxd4
{[%clk 00:13:38]} {[%emt 00:00:02]} b5 {[%clk 00:00:45]} {[%emt 00:00:08]} 57.
Kc5 {[%clk 00:13:42]} {[%emt 00:00:05]} Bd3 {[%clk 00:00:45]} {[%emt 00:00:10]}
58. Rf6 {[%clk 00:13:46]} {[%emt 00:00:06]} a5 {[%clk 00:00:43]} {[%emt
00:00:12]} 59. bxa5 {[%clk 00:13:54]} {[%emt 00:00:02]} b4 {[%clk 00:00:49]}
{[%emt 00:00:03]} 60. a6 {[%clk 00:14:03]} {[%emt 00:00:02]} b3 {[%clk
00:00:53]} {[%emt 00:00:05]} 61. a7 {[%clk 00:14:12]} {[%emt 00:00:02]} Be4
{[%clk 00:00:53]} {[%emt 00:00:10]} 62. a8=Q+ {[%emt 00:00:04]} Bxa8 {[%clk
00:01:01]} 63. Ra6+ {[%clk 00:14:27]} {[%emt 00:00:01]} 1-0

[Event "British Rapidplay Championship 2023"]
[Site "Mercure Bradford, Bankfield Hotel"]
[Date "2023.04.16"]
[Round "7.20"]
[White "Coles, Steven F"]
[Black "Buckley, Colm"]
[Result "0-1"]
[TimeControl "15 minutes plus 10 seconds per move"]
[WhiteElo "1969"]
[BlackElo "1870"]

1. d4 {[%clk 00:15:19]} e6 {[%clk 00:15:18]} {[%emt 00:00:03]} 2. Nf3 {[%clk
00:15:22]} {[%emt 00:00:07]} Nf6 {[%clk 00:15:24]} {[%emt 00:00:04]} 3. Bg5
{[%clk 00:15:15]} {[%emt 00:00:16]} c5 {[%clk 00:15:19]} {[%emt 00:00:15]} 4.
c3 {[%clk 00:15:02]} {[%emt 00:00:24]} Qb6 {[%clk 00:15:07]} {[%emt 00:00:22]}
5. Qb3 {[%clk 00:14:48]} {[%emt 00:00:24]} Nc6 {[%clk 00:14:35]} {[%emt
00:00:41]} 6. e3 {[%clk 00:14:30]} {[%emt 00:00:29]} d5 {[%clk 00:14:27]}
{[%emt 00:00:18]} 7. Nbd2 {[%clk 00:13:52]} {[%emt 00:00:47]} Bd6 {[%clk
00:13:55]} {[%emt 00:00:42]} 8. Bxf6 {[%clk 00:13:24]} {[%emt 00:00:38]} gxf6
{[%clk 00:13:59]} {[%emt 00:00:07]} 9. g3 {[%clk 00:13:29]} {[%emt 00:00:05]}
Bd7 {[%clk 00:12:54]} {[%emt 00:01:15]} 10. Bg2 {[%clk 00:13:08]} {[%emt
00:00:31]} Qxb3 {[%clk 00:11:06]} {[%emt 00:01:58]} 11. axb3 {[%clk 00:13:00]}
{[%emt 00:00:19]} cxd4 {[%clk 00:10:41]} {[%emt 00:00:34]} 12. exd4 {[%clk
00:12:51]} {[%emt 00:00:18]} a6 {[%clk 00:08:56]} {[%emt 00:01:56]} 13. O-O
{[%clk 00:12:54]} {[%emt 00:00:07]} Ne7 {[%clk 00:08:23]} {[%emt 00:00:43]} 14.
c4 {[%clk 00:12:22]} {[%emt 00:00:42]} Bc6 {[%clk 00:08:12]} {[%emt 00:00:21]}
15. c5 {[%clk 00:12:15]} {[%emt 00:00:17]} Bc7 {[%clk 00:08:11]} {[%emt
00:00:11]} 16. Rfe1 {[%clk 00:12:16]} {[%emt 00:00:09]} Nf5 {[%clk 00:07:30]}
{[%emt 00:00:50]} 17. Bh3 {[%clk 00:12:13]} {[%emt 00:00:13]} Ne7 {[%clk
00:07:12]} {[%emt 00:00:29]} 18. Bf1 {[%clk 00:12:10]} {[%emt 00:00:13]} h5
{[%clk 00:06:55]} {[%emt 00:00:26]} 19. h4 {[%clk 00:12:16]} {[%emt 00:00:04]}
Kd7 {[%clk 00:06:18]} {[%emt 00:00:47]} 20. Bd3 {[%clk 00:11:32]} {[%emt
00:00:54]} Rhg8 {[%clk 00:05:28]} {[%emt 00:01:01]} 21. Kh2 {[%clk 00:11:23]}
{[%emt 00:00:19]} Nf5 {[%clk 00:04:59]} {[%emt 00:00:39]} 22. Bxf5 {[%clk
00:10:27]} {[%emt 00:01:06]} exf5 {[%clk 00:05:01]} {[%emt 00:00:04]} 23. Rg1
{[%clk 00:09:13]} {[%emt 00:01:28]} Rae8 {[%clk 00:04:20]} {[%emt 00:00:51]} 24.
Rae1 {[%clk 00:09:18]} {[%emt 00:00:05]} Rxe1 {[%clk 00:04:18]} {[%emt
00:00:12]} 25. Rxe1 {[%clk 00:09:03]} {[%emt 00:00:25]} f4 {[%clk 00:04:25]}
{[%emt 00:00:02]} 26. Nf1 {[%clk 00:09:05]} {[%emt 00:00:08]} Bb5 {[%clk
00:04:18]} {[%emt 00:00:18]} 27. N3d2 {[%clk 00:08:59]} {[%emt 00:00:17]} Rg4
{[%clk 00:03:41]} {[%emt 00:00:46]} 28. f3 {[%clk 00:07:10]} {[%emt 00:01:58]}
fxg3+ {[%clk 00:03:42]} {[%emt 00:00:09]} 29. Kg2 {[%clk 00:06:49]} {[%emt
00:00:32]} Rxd4 {[%clk 00:03:33]} {[%emt 00:00:18]} 30. Nb1 {[%clk 00:06:17]}
{[%emt 00:00:42]} Rxh4 {[%clk 00:03:06]} {[%emt 00:00:38]} 31. Nxg3 {[%clk
00:06:20]} {[%emt 00:00:06]} Bxg3 {[%clk 00:02:17]} {[%emt 00:00:59]} 32. Kxg3
{[%clk 00:06:29]} {[%emt 00:00:03]} Rb4 {[%clk 00:02:14]} {[%emt 00:00:12]} 33.
Nd2 {[%clk 00:06:09]} {[%emt 00:00:29]} Rd4 {[%clk 00:01:49]} {[%emt 00:00:36]}
34. Nb1 {[%clk 00:05:53]} {[%emt 00:00:26]} Rd3 {[%clk 00:01:34]} {[%emt
00:00:25]} 35. Nc3 {[%clk 00:05:53]} {[%emt 00:00:10]} Bc6 {[%clk 00:01:43]} 36.
Kf4 {[%clk 00:05:45]} {[%emt 00:00:18]} d4 {[%clk 00:01:23]} {[%emt 00:00:30]}
37. Ne4 {[%clk 00:05:54]} {[%emt 00:00:01]} Bxe4 {[%clk 00:01:25]} {[%emt
00:00:08]} 38. Rxe4 {[%clk 00:06:02]} {[%emt 00:00:02]} Kc6 {[%clk 00:01:13]}
{[%emt 00:00:22]} 39. Re7 {[%clk 00:06:04]} {[%emt 00:00:08]} Rxb3 {[%clk
00:01:11]} {[%emt 00:00:11]} 40. Rxf7 {[%clk 00:06:09]} {[%emt 00:00:06]} Kxc5
{[%clk 00:01:10]} {[%emt 00:00:12]} 41. Rxf6 {[%clk 00:06:16]} {[%emt
00:00:01]} Kc4 {[%clk 00:01:03]} {[%emt 00:00:18]} 42. Rh6 {[%clk 00:05:57]}
{[%emt 00:00:29]} Rxb2 {[%clk 00:01:03]} {[%emt 00:00:09]} 43. Rxh5 {[%clk
00:05:54]} {[%emt 00:00:14]} d3 {[%clk 00:01:11]} {[%emt 00:00:03]} 44. Ke3
{[%clk 00:05:59]} {[%emt 00:00:04]} Re2+ {[%clk 00:01:16]} {[%emt 00:00:04]} 45.
Kf4 {[%clk 00:05:58]} {[%emt 00:00:11]} d2 {[%clk 00:01:25]} {[%emt 00:00:02]}
0-1